[Event "Titled Tuesday Blitz January 25 2022"]
[White "Nestorovic, Nikola"]
[Black "Manukian, Artak"]
[WhiteFideId "934526"]
[BlackFideId "13301373"]
[WhiteElo "2411"]
[BlackElo "2424"]
[Result "1-0"]
[Round "07"]
[TimeControl "180+1"]
[Date "2022.01.26"]
[WhiteClock "0:00:59"]
[BlackClock "0:00:15"]

1. e4 {[%clk 0:03:00]}  c6 {[%clk 0:02:59]} 2. d4 {[%clk 0:02:57]}  d5 {[%clk 0:02:58]} 3. e5 {[%clk 0:02:58]}  Bf5 {[%clk 0:02:57]} 4. Nd2 {[%clk 0:02:58]}  e6 {[%clk 0:02:55]} 5. Nb3 {[%clk 0:02:57]}  Nd7 {[%clk 0:02:54]} 6. Nf3 {[%clk 0:02:58]}  h6 {[%clk 0:02:53]} 7. Be2 {[%clk 0:02:57]}  g5 {[%clk 0:02:50]} 8. O-O {[%clk 0:02:57]}  g4 {[%clk 0:02:33]} 9. Ne1 {[%clk 0:02:56]}  h5 {[%clk 0:02:33]} 10. a4 {[%clk 0:02:56]}  Bh6 {[%clk 0:02:25]} 11. a5 {[%clk 0:02:45]}  Ne7 {[%clk 0:02:06]} 12. c4 {[%clk 0:02:36]}  dxc4 {[%clk 0:01:51]} 13. Bxc4 {[%clk 0:02:35]}  Nd5 {[%clk 0:01:52]} 14. Bd3 {[%clk 0:02:17]}  Qe7 {[%clk 0:01:26]} 15. Bxf5 {[%clk 0:02:10]}  exf5 {[%clk 0:01:27]} 16. a6 {[%clk 0:02:10]}  b6 {[%clk 0:01:27]} 17. Nd3 {[%clk 0:02:06]}  O-O-O {[%clk 0:01:23]} 18. Bd2 {[%clk 0:02:03]}  Kb8 {[%clk 0:01:23]} 19. Rc1 {[%clk 0:02:02]}  Rc8 {[%clk 0:01:22]} 20. Bxh6 {[%clk 0:01:51]}  Rxh6 {[%clk 0:01:21]} 21. Qd2 {[%clk 0:01:52]}  Rg6 {[%clk 0:01:12]} 22. Nf4 {[%clk 0:01:46]}  Nxf4 {[%clk 0:01:10]} 23. Qxf4 {[%clk 0:01:46]}  Qg5 {[%clk 0:00:56]} 24. Qxg5 {[%clk 0:01:43]}  Rxg5 {[%clk 0:00:57]} 25. Rfd1 {[%clk 0:01:38]}  f4 {[%clk 0:00:52]} 26. Nd2 {[%clk 0:01:37]}  f5 {[%clk 0:00:35]} 27. Nc4 {[%clk 0:01:28]}  f3 {[%clk 0:00:33]} 28. Nd6 {[%clk 0:01:19]}  Rc7 {[%clk 0:00:31]} 29. b4 {[%clk 0:01:18]}  Nf8 {[%clk 0:00:25]} 30. b5 {[%clk 0:01:14]}  cxb5 {[%clk 0:00:24]} 31. d5 {[%clk 0:01:09]}  f4 {[%clk 0:00:20]} 32. Rxc7 {[%clk 0:01:08]}  Kxc7 {[%clk 0:00:21]} 33. Nxb5+ {[%clk 0:01:08]}  Kb8 {[%clk 0:00:17]} 34. e6 {[%clk 0:00:59]}  Nxe6 {[%clk 0:00:15]} 35. dxe6 {[%clk 0:00:59]}  Rxb5 {[%clk 0:00:15]} 36. e7 {[%clk 0:01:00]}  Re5 {[%clk 0:00:15]} 37. Rd8+ {[%clk 0:00:59]}  Kc7 {[%clk 0:00:15]} 38. e8=Q {[%clk 0:00:59]} 1-0


[Site "https://www.chess.com"]

[Event "Titled Tuesday Blitz January 25 2022"]
[White "Pandey Srishti"]
[Black "Maevsky, Nikolay"]
[WhiteFideId "35093290"]
[BlackFideId "4198220"]
[WhiteElo "1832"]
[BlackElo "2104"]
[Result "1/2-1/2"]
[Round "07"]
[TimeControl "180+1"]
[Date "2022.01.26"]
[WhiteClock "0:00:17"]
[BlackClock "0:00:02"]

1. d4 {[%clk 0:02:57]}  d5 {[%clk 0:02:59]} 2. c4 {[%clk 0:02:55]}  Nc6 {[%clk 0:03:00]} 3. cxd5 {[%clk 0:02:53]}  Qxd5 {[%clk 0:03:00]} 4. Nf3 {[%clk 0:02:51]}  e5 {[%clk 0:03:00]} 5. dxe5 {[%clk 0:02:46]}  Qxd1+ {[%clk 0:03:00]} 6. Kxd1 {[%clk 0:02:47]}  Bg4 {[%clk 0:02:59]} 7. Nbd2 {[%clk 0:02:46]}  Nge7 {[%clk 0:02:52]} 8. h3 {[%clk 0:02:42]}  Bxf3 {[%clk 0:02:52]} 9. Nxf3 {[%clk 0:02:43]}  Ng6 {[%clk 0:02:52]} 10. Kc2 {[%clk 0:02:36]}  O-O-O {[%clk 0:02:51]} 11. a3 {[%clk 0:02:35]}  Ngxe5 {[%clk 0:02:50]} 12. Nxe5 {[%clk 0:02:35]}  Nxe5 {[%clk 0:02:50]} 13. Bf4 {[%clk 0:02:35]}  Ng6 {[%clk 0:02:50]} 14. Bg3 {[%clk 0:02:35]}  Bd6 {[%clk 0:02:50]} 15. Bxd6 {[%clk 0:02:34]}  Rxd6 {[%clk 0:02:50]} 16. e3 {[%clk 0:02:34]}  Rhd8 {[%clk 0:02:50]} 17. f4 {[%clk 0:02:19]}  Rd2+ {[%clk 0:02:24]} 18. Kc3 {[%clk 0:02:17]}  Rf2 {[%clk 0:02:21]} 19. Bd3 {[%clk 0:02:02]}  Rxg2 {[%clk 0:02:18]} 20. Rag1 {[%clk 0:02:02]}  Rf2 {[%clk 0:02:11]} 21. Rf1 {[%clk 0:02:00]}  Rxf1 {[%clk 0:02:06]} 22. Rxf1 {[%clk 0:02:01]}  Ne7 {[%clk 0:02:02]} 23. Rg1 {[%clk 0:01:56]}  g6 {[%clk 0:02:01]} 24. e4 {[%clk 0:01:49]}  Kd7 {[%clk 0:01:51]} 25. Bc4 {[%clk 0:01:46]}  Ke8 {[%clk 0:01:51]} 26. h4 {[%clk 0:01:45]}  Kf8 {[%clk 0:01:50]} 27. h5 {[%clk 0:01:43]}  Rd6 {[%clk 0:01:42]} 28. hxg6 {[%clk 0:01:39]}  hxg6 {[%clk 0:01:39]} 29. b4 {[%clk 0:01:37]}  Rf6 {[%clk 0:01:35]} 30. Rg4 {[%clk 0:01:36]}  Rd6 {[%clk 0:01:34]} 31. Rh4 {[%clk 0:01:31]}  Kg7 {[%clk 0:01:33]} 32. Rh1 {[%clk 0:01:28]}  Nc6 {[%clk 0:01:26]} 33. Re1 {[%clk 0:01:18]}  Rd8 {[%clk 0:01:20]} 34. e5 {[%clk 0:01:15]}  Ne7 {[%clk 0:01:16]} 35. e6 {[%clk 0:01:13]}  f5 {[%clk 0:01:16]} 36. Re5 {[%clk 0:01:08]}  a6 {[%clk 0:01:11]} 37. b5 {[%clk 0:01:07]}  axb5 {[%clk 0:01:10]} 38. Rxb5 {[%clk 0:01:08]}  b6 {[%clk 0:01:10]} 39. a4 {[%clk 0:01:08]}  Nc6 {[%clk 0:01:03]} 40. Rb1 {[%clk 0:00:53]}  Kf6 {[%clk 0:00:59]} 41. Rh1 {[%clk 0:00:52]}  Nd4 {[%clk 0:00:42]} 42. e7 {[%clk 0:00:40]}  Kxe7 {[%clk 0:00:39]} 43. Rh7+ {[%clk 0:00:39]}  Kd6 {[%clk 0:00:23]} 44. Kxd4 {[%clk 0:00:38]}  Re8 {[%clk 0:00:21]} 45. Bd3 {[%clk 0:00:29]}  Ra8 {[%clk 0:00:18]} 46. Bc2 {[%clk 0:00:28]}  c6 {[%clk 0:00:06]} 47. Rg7 {[%clk 0:00:27]}  b5 {[%clk 0:00:06]} 48. Rxg6+ {[%clk 0:00:26]}  Kc7 {[%clk 0:00:07]} 49. axb5 {[%clk 0:00:25]}  cxb5 {[%clk 0:00:07]} 50. Kc5 {[%clk 0:00:22]}  Ra2 {[%clk 0:00:03]} 51. Rg7+ {[%clk 0:00:21]}  Kd8 {[%clk 0:00:03]} 52. Bxf5 {[%clk 0:00:19]}  Rf2 {[%clk 0:00:03]} 53. Rg4 {[%clk 0:00:18]}  Ke7 {[%clk 0:00:02]} 54. Bc8 {[%clk 0:00:17]}  Rc2+ {[%clk 0:00:01]} 55. Kxb5 {[%clk 0:00:17]}  Rxc8 {[%clk 0:00:02]} 56. Rg1 {[%clk 0:00:17]}  Kf6 {[%clk 0:00:02]} 57. Rf1 {[%clk 0:00:17]}  Kf5 {[%clk 0:00:02]} 1/2-1/2


[Site "https://www.chess.com"]

[Event "Titled Tuesday Blitz January 25 2022"]
[White "Prieto Aranguren, Alain"]
[Black "Williams, Simon K"]
[WhiteFideId "2268906"]
[BlackFideId "404454"]
[WhiteElo "2235"]
[BlackElo "2468"]
[Result "1-0"]
[Round "07"]
[TimeControl "180+1"]
[Date "2022.01.26"]
[WhiteClock "0:00:12"]
[BlackClock "0:00:09"]

1. e4 {[%clk 0:02:59]}  c5 {[%clk 0:02:58]} 2. Nf3 {[%clk 0:02:57]}  d6 {[%clk 0:02:57]} 3. Bc4 {[%clk 0:02:57]}  Nf6 {[%clk 0:02:49]} 4. d3 {[%clk 0:02:55]}  Nc6 {[%clk 0:02:46]} 5. O-O {[%clk 0:02:44]}  Bg4 {[%clk 0:02:36]} 6. Nc3 {[%clk 0:02:40]}  e6 {[%clk 0:02:36]} 7. Bg5 {[%clk 0:02:36]}  Be7 {[%clk 0:02:34]} 8. a3 {[%clk 0:02:31]}  Nd4 {[%clk 0:02:26]} 9. Nb5 {[%clk 0:02:30]}  Nxf3+ {[%clk 0:02:22]} 10. gxf3 {[%clk 0:02:29]}  Bh3 {[%clk 0:02:22]} 11. Re1 {[%clk 0:02:26]}  a6 {[%clk 0:02:18]} 12. Nc3 {[%clk 0:02:23]}  Nd7 {[%clk 0:02:17]} 13. Bxe7 {[%clk 0:02:20]}  Qxe7 {[%clk 0:02:18]} 14. f4 {[%clk 0:02:11]}  Qh4 {[%clk 0:02:14]} 15. Qf3 {[%clk 0:02:10]}  g5 {[%clk 0:02:11]} 16. Qg3 {[%clk 0:02:03]}  Rg8 {[%clk 0:01:53]} 17. Kh1 {[%clk 0:01:45]}  Qxg3 {[%clk 0:01:29]} 18. hxg3 {[%clk 0:01:42]}  gxf4 {[%clk 0:01:29]} 19. gxf4 {[%clk 0:01:40]}  Ke7 {[%clk 0:01:07]} 20. Rg1 {[%clk 0:01:39]}  Bg4 {[%clk 0:01:05]} 21. Rg3 {[%clk 0:01:36]}  b5 {[%clk 0:01:01]} 22. Bb3 {[%clk 0:01:33]}  Rg6 {[%clk 0:00:51]} 23. Rag1 {[%clk 0:01:24]}  Rag8 {[%clk 0:00:46]} 24. Kg2 {[%clk 0:01:24]}  Bh5 {[%clk 0:00:29]} 25. Rh1 {[%clk 0:01:20]}  Rxg3+ {[%clk 0:00:26]} 26. fxg3 {[%clk 0:01:14]}  Bg6 {[%clk 0:00:27]} 27. Kf3 {[%clk 0:01:05]}  h5 {[%clk 0:00:26]} 28. Nd1 {[%clk 0:01:00]}  Nb8 {[%clk 0:00:25]} 29. Ne3 {[%clk 0:01:00]}  Nc6 {[%clk 0:00:25]} 30. c3 {[%clk 0:00:53]}  Kf6 {[%clk 0:00:25]} 31. Bd1 {[%clk 0:00:50]}  Ne7 {[%clk 0:00:22]} 32. Kf2 {[%clk 0:00:48]}  a5 {[%clk 0:00:22]} 33. Bxh5 {[%clk 0:00:43]}  Bxh5 {[%clk 0:00:22]} 34. Rxh5 {[%clk 0:00:43]}  Rb8 {[%clk 0:00:21]} 35. g4 {[%clk 0:00:41]}  b4 {[%clk 0:00:20]} 36. axb4 {[%clk 0:00:41]}  axb4 {[%clk 0:00:20]} 37. Nc4 {[%clk 0:00:37]}  d5 {[%clk 0:00:18]} 38. Ne5 {[%clk 0:00:26]}  Kg7 {[%clk 0:00:17]} 39. Rg5+ {[%clk 0:00:21]}  Kh7 {[%clk 0:00:17]} 40. Nxf7 {[%clk 0:00:20]}  b3 {[%clk 0:00:12]} 41. f5 {[%clk 0:00:15]}  exf5 {[%clk 0:00:10]} 42. gxf5 {[%clk 0:00:14]}  Ra8 {[%clk 0:00:10]} 43. f6 {[%clk 0:00:13]}  Ra2 {[%clk 0:00:09]} 44. Rg7# {[%clk 0:00:12]} 1-0


[Site "https://www.chess.com"]

[Event "Titled Tuesday Blitz January 25 2022"]
[White "Rastbod, Ali"]
[Black "Ruperez Benito, Antonio"]
[WhiteFideId "12567477"]
[BlackFideId "22245049"]
[WhiteElo "2200"]
[BlackElo "2249"]
[Result "0-1"]
[Round "07"]
[TimeControl "180+1"]
[Date "2022.01.26"]
[WhiteClock "0:01:55"]
[BlackClock "0:01:27"]

1. c4 {[%clk 0:02:57]}  c6 {[%clk 0:02:57]} 2. Nf3 {[%clk 0:02:55]}  d5 {[%clk 0:02:58]} 3. g3 {[%clk 0:02:55]}  Nf6 {[%clk 0:02:52]} 4. Bg2 {[%clk 0:02:55]}  g6 {[%clk 0:02:52]} 5. b3 {[%clk 0:02:55]}  Bg7 {[%clk 0:02:53]} 6. Bb2 {[%clk 0:02:56]}  O-O {[%clk 0:02:53]} 7. O-O {[%clk 0:02:56]}  a5 {[%clk 0:02:53]} 8. Nc3 {[%clk 0:02:55]}  Nbd7 {[%clk 0:02:52]} 9. Rc1 {[%clk 0:02:29]}  Ne4 {[%clk 0:02:47]} 10. Qc2 {[%clk 0:02:26]}  Nxc3 {[%clk 0:02:44]} 11. Bxc3 {[%clk 0:02:26]}  Bxc3 {[%clk 0:02:43]} 12. Qxc3 {[%clk 0:02:27]}  dxc4 {[%clk 0:02:44]} 13. Qxc4 {[%clk 0:02:27]}  Nf6 {[%clk 0:02:38]} 14. d4 {[%clk 0:02:23]}  Be6 {[%clk 0:02:36]} 15. Qc5 {[%clk 0:02:23]}  a4 {[%clk 0:02:35]} 16. Nd2 {[%clk 0:02:13]}  axb3 {[%clk 0:02:28]} 17. axb3 {[%clk 0:02:14]}  Ra5 {[%clk 0:02:21]} 18. Qc2 {[%clk 0:02:10]}  Qxd4 {[%clk 0:02:17]} 19. Nc4 {[%clk 0:02:00]}  Bxc4 {[%clk 0:02:14]} 20. bxc4 {[%clk 0:02:01]}  Rfa8 {[%clk 0:02:11]} 21. Rfd1 {[%clk 0:02:01]}  Qe5 {[%clk 0:02:08]} 22. e3 {[%clk 0:01:59]}  Ra2 {[%clk 0:02:03]} 23. Qd3 {[%clk 0:01:59]}  Rb2 {[%clk 0:01:40]} 24. Rf1 {[%clk 0:01:57]}  Raa2 {[%clk 0:01:36]} 25. h3 {[%clk 0:01:55]}  Qxg3 {[%clk 0:01:27]} 0-1


[Site "https://www.chess.com"]

[Event "Titled Tuesday Blitz January 25 2022"]
[White "Romanchuk, Viktor"]
[Black "Rychagov, Andrey"]
[WhiteFideId "14109271"]
[BlackFideId "4119932"]
[WhiteElo "2242"]
[BlackElo "2500"]
[Result "0-1"]
[Round "07"]
[TimeControl "180+1"]
[Date "2022.01.26"]
[WhiteClock "0:00:01"]
[BlackClock "0:00:05"]

1. d4 {[%clk 0:02:57]}  f5 {[%clk 0:02:59]} 2. Nc3 {[%clk 0:02:56]}  Nf6 {[%clk 0:02:57]} 3. Bg5 {[%clk 0:02:56]}  d5 {[%clk 0:02:57]} 4. f3 {[%clk 0:02:55]}  Nc6 {[%clk 0:02:50]} 5. Qd2 {[%clk 0:02:53]}  Be6 {[%clk 0:02:46]} 6. O-O-O {[%clk 0:02:52]}  Bf7 {[%clk 0:02:37]} 7. e4 {[%clk 0:02:44]}  fxe4 {[%clk 0:02:36]} 8. fxe4 {[%clk 0:02:44]}  Nxe4 {[%clk 0:02:35]} 9. Nxe4 {[%clk 0:02:44]}  dxe4 {[%clk 0:02:35]} 10. d5 {[%clk 0:02:43]}  Ne5 {[%clk 0:02:32]} 11. Qd4 {[%clk 0:02:38]}  Qd6 {[%clk 0:02:13]} 12. Bf4 {[%clk 0:01:59]}  Nd3+ {[%clk 0:02:08]} 13. Bxd3 {[%clk 0:01:59]}  Qxf4+ {[%clk 0:02:08]} 14. Kb1 {[%clk 0:01:59]}  O-O-O {[%clk 0:01:56]} 15. Bxe4 {[%clk 0:01:48]}  e5 {[%clk 0:01:41]} 16. Ne2 {[%clk 0:01:24]}  exd4 {[%clk 0:01:12]} 17. Nxf4 {[%clk 0:01:22]}  Bd6 {[%clk 0:01:12]} 18. Ne6 {[%clk 0:00:59]}  Bxe6 {[%clk 0:01:06]} 19. dxe6 {[%clk 0:01:00]}  c5 {[%clk 0:01:06]} 20. g3 {[%clk 0:00:53]}  Rdf8 {[%clk 0:01:04]} 21. Rhf1 {[%clk 0:00:51]}  Kd8 {[%clk 0:01:00]} 22. Bxb7 {[%clk 0:00:48]}  Ke7 {[%clk 0:00:59]} 23. Bd5 {[%clk 0:00:45]}  Rf6 {[%clk 0:00:58]} 24. Rxf6 {[%clk 0:00:43]}  gxf6 {[%clk 0:00:59]} 25. c3 {[%clk 0:00:42]}  Be5 {[%clk 0:00:58]} 26. Kc2 {[%clk 0:00:40]}  h5 {[%clk 0:00:58]} 27. cxd4 {[%clk 0:00:31]}  Bxd4 {[%clk 0:00:56]} 28. b4 {[%clk 0:00:24]}  h4 {[%clk 0:00:54]} 29. bxc5 {[%clk 0:00:23]}  Bxc5 {[%clk 0:00:51]} 30. Bb3 {[%clk 0:00:17]}  Bd6 {[%clk 0:00:47]} 31. gxh4 {[%clk 0:00:16]}  Rxh4 {[%clk 0:00:45]} 32. Rd2 {[%clk 0:00:17]}  f5 {[%clk 0:00:43]} 33. Rg2 {[%clk 0:00:14]}  Be5 {[%clk 0:00:41]} 34. Kd3 {[%clk 0:00:14]}  Rh3+ {[%clk 0:00:38]} 35. Ke2 {[%clk 0:00:14]}  f4 {[%clk 0:00:39]} 36. Rf2 {[%clk 0:00:11]}  Re3+ {[%clk 0:00:34]} 37. Kd2 {[%clk 0:00:11]}  Bc3+ {[%clk 0:00:31]} 38. Kc2 {[%clk 0:00:11]}  f3 {[%clk 0:00:29]} 39. Kd1 {[%clk 0:00:09]}  Re1+ {[%clk 0:00:27]} 40. Kc2 {[%clk 0:00:08]}  Re2+ {[%clk 0:00:28]} 41. Kxc3 {[%clk 0:00:08]}  Rxf2 {[%clk 0:00:28]} 42. Kd3 {[%clk 0:00:07]}  Re2 {[%clk 0:00:22]} 43. Bd5 {[%clk 0:00:05]}  Rxh2 {[%clk 0:00:21]} 44. Bxf3 {[%clk 0:00:05]}  Rxa2 {[%clk 0:00:20]} 45. Bd5 {[%clk 0:00:05]}  Ra4 {[%clk 0:00:19]} 46. Kc3 {[%clk 0:00:05]}  Ra5 {[%clk 0:00:18]} 47. Bc4 {[%clk 0:00:04]}  Kd6 {[%clk 0:00:18]} 48. Kb4 {[%clk 0:00:05]}  Rc5 {[%clk 0:00:18]} 49. Bb3 {[%clk 0:00:05]}  Re5 {[%clk 0:00:17]} 50. Kc4 {[%clk 0:00:04]}  Kc6 {[%clk 0:00:15]} 51. Kc3 {[%clk 0:00:04]}  Kc5 {[%clk 0:00:15]} 52. Ba2 {[%clk 0:00:04]}  a5 {[%clk 0:00:15]} 53. Kb2 {[%clk 0:00:03]}  Re2+ {[%clk 0:00:14]} 54. Ka3 {[%clk 0:00:03]}  Re4 {[%clk 0:00:14]} 55. Bb3 {[%clk 0:00:03]}  Kb5 {[%clk 0:00:13]} 56. Ba2 {[%clk 0:00:03]}  Re3+ {[%clk 0:00:13]} 57. Kb2 {[%clk 0:00:03]}  Kb4 {[%clk 0:00:13]} 58. Bd5 {[%clk 0:00:03]}  Re5 {[%clk 0:00:13]} 59. Ba2 {[%clk 0:00:03]}  Re2+ {[%clk 0:00:13]} 60. Ka1 {[%clk 0:00:03]}  Ka3 {[%clk 0:00:12]} 61. Bb1 {[%clk 0:00:03]}  Rxe6 {[%clk 0:00:12]} 62. Bc2 {[%clk 0:00:04]}  Re2 {[%clk 0:00:12]} 63. Bb1 {[%clk 0:00:04]}  Rd2 {[%clk 0:00:12]} 64. Be4 {[%clk 0:00:03]}  Ra2+ {[%clk 0:00:12]} 65. Kb1 {[%clk 0:00:03]}  Re2 {[%clk 0:00:12]} 66. Bd3 {[%clk 0:00:03]}  Re1+ {[%clk 0:00:12]} 67. Kc2 {[%clk 0:00:03]}  Re5 {[%clk 0:00:12]} 68. Kb1 {[%clk 0:00:03]}  Re3 {[%clk 0:00:11]} 69. Bf5 {[%clk 0:00:02]}  Kb3 {[%clk 0:00:09]} 70. Ka1 {[%clk 0:00:02]}  Re2 {[%clk 0:00:09]} 71. Bb1 {[%clk 0:00:03]}  a4 {[%clk 0:00:09]} 72. Bd3 {[%clk 0:00:01]}  Rf2 {[%clk 0:00:06]} 73. Bb1 {[%clk 0:00:01]}  a3 {[%clk 0:00:05]} 0-1


[Site "https://www.chess.com"]

[Event "Titled Tuesday Blitz January 25 2022"]
[White "Seemann, Jakub"]
[Black "Nazari, Arad"]
[WhiteFideId "21874697"]
[BlackFideId "12577324"]
[WhiteElo "2003"]
[BlackElo "2120"]
[Result "1-0"]
[Round "07"]
[TimeControl "180+1"]
[Date "2022.01.26"]
[WhiteClock "0:00:04"]
[BlackClock "0:00:08"]

1. d4 {[%clk 0:02:58]}  Nf6 {[%clk 0:02:58]} 2. c4 {[%clk 0:02:56]}  g6 {[%clk 0:02:59]} 3. g3 {[%clk 0:02:55]}  c6 {[%clk 0:02:58]} 4. Bg2 {[%clk 0:02:55]}  d5 {[%clk 0:02:45]} 5. cxd5 {[%clk 0:02:56]}  cxd5 {[%clk 0:02:45]} 6. Nf3 {[%clk 0:02:53]}  Bg7 {[%clk 0:02:45]} 7. O-O {[%clk 0:02:53]}  O-O {[%clk 0:02:46]} 8. Nc3 {[%clk 0:02:43]}  Ne4 {[%clk 0:02:46]} 9. Bf4 {[%clk 0:02:40]}  Nc6 {[%clk 0:02:43]} 10. Rc1 {[%clk 0:02:30]}  Nxc3 {[%clk 0:02:41]} 11. bxc3 {[%clk 0:02:29]}  Bd7 {[%clk 0:02:41]} 12. Qb3 {[%clk 0:02:24]}  e6 {[%clk 0:02:28]} 13. Rfd1 {[%clk 0:02:22]}  Na5 {[%clk 0:02:28]} 14. Qb4 {[%clk 0:02:15]}  b6 {[%clk 0:02:26]} 15. Ne5 {[%clk 0:02:11]}  Rc8 {[%clk 0:02:25]} 16. c4 {[%clk 0:01:46]}  Bxe5 {[%clk 0:02:22]} 17. dxe5 {[%clk 0:01:41]}  Nxc4 {[%clk 0:02:10]} 18. e4 {[%clk 0:01:29]}  a5 {[%clk 0:01:57]} 19. Qb1 {[%clk 0:01:19]}  Ba4 {[%clk 0:01:46]} 20. exd5 {[%clk 0:01:16]}  Bxd1 {[%clk 0:01:45]} 21. Rxd1 {[%clk 0:01:16]}  exd5 {[%clk 0:01:44]} 22. Bxd5 {[%clk 0:01:17]}  Qe7 {[%clk 0:01:41]} 23. Qe4 {[%clk 0:00:57]}  b5 {[%clk 0:01:33]} 24. a4 {[%clk 0:00:41]}  Nb2 {[%clk 0:01:28]} 25. Rb1 {[%clk 0:00:39]}  Nxa4 {[%clk 0:01:28]} 26. e6 {[%clk 0:00:30]}  f5 {[%clk 0:01:23]} 27. Qe5 {[%clk 0:00:22]}  Nc3 {[%clk 0:01:23]} 28. Bg5 {[%clk 0:00:19]}  Qxg5 {[%clk 0:00:58]} 29. e7+ {[%clk 0:00:19]}  Nxd5 {[%clk 0:00:58]} 30. exf8=Q+ {[%clk 0:00:19]}  Kxf8 {[%clk 0:00:57]} 31. Qh8+ {[%clk 0:00:18]}  Kf7 {[%clk 0:00:55]} 32. Qxc8 {[%clk 0:00:19]}  b4 {[%clk 0:00:38]} 33. Rd1 {[%clk 0:00:15]}  Ne7 {[%clk 0:00:34]} 34. Qc4+ {[%clk 0:00:14]}  Kg7 {[%clk 0:00:34]} 35. Qc5 {[%clk 0:00:12]}  b3 {[%clk 0:00:30]} 36. Qc3+ {[%clk 0:00:10]}  Kh6 {[%clk 0:00:29]} 37. Qxb3 {[%clk 0:00:10]}  Nc6 {[%clk 0:00:21]} 38. Qc3 {[%clk 0:00:08]}  Nb4 {[%clk 0:00:18]} 39. Rd7 {[%clk 0:00:08]}  Qh5 {[%clk 0:00:07]} 40. Qg7+ {[%clk 0:00:06]}  Kg5 {[%clk 0:00:07]} 41. h4+ {[%clk 0:00:05]}  Kg4 {[%clk 0:00:08]} 42. Qd4+ {[%clk 0:00:03]}  Kh3 {[%clk 0:00:08]} 43. Qe3 {[%clk 0:00:02]}  Qg4 {[%clk 0:00:08]} 44. Qe1 {[%clk 0:00:01]}  Qf3 {[%clk 0:00:08]} 45. Qf1+ {[%clk 0:00:02]}  Kg4 {[%clk 0:00:09]} 46. Rd4+ {[%clk 0:00:02]}  Kh5 {[%clk 0:00:09]} 47. Rf4 {[%clk 0:00:02]}  Qd5 {[%clk 0:00:08]} 48. Qe2+ {[%clk 0:00:02]}  Kh6 {[%clk 0:00:08]} 49. Kh2 {[%clk 0:00:03]}  Nc6 {[%clk 0:00:09]} 50. Ra4 {[%clk 0:00:02]}  Nd4 {[%clk 0:00:09]} 51. Qe3+ {[%clk 0:00:03]}  f4 {[%clk 0:00:08]} 52. Qxf4+ {[%clk 0:00:03]}  g5 {[%clk 0:00:08]} 53. hxg5+ {[%clk 0:00:04]}  Kh5 {[%clk 0:00:08]} 54. Qh4+ {[%clk 0:00:03]}  Kg6 {[%clk 0:00:08]} 55. Rxd4 {[%clk 0:00:04]} 1-0


[Site "https://www.chess.com"]

[Event "Titled Tuesday Blitz January 25 2022"]
[White "Senthil Maran K"]
[Black "Perske, Thore"]
[WhiteFideId "25035681"]
[BlackFideId "12902195"]
[WhiteElo "2194"]
[BlackElo "2315"]
[Result "1-0"]
[Round "07"]
[TimeControl "180+1"]
[Date "2022.01.26"]
[WhiteClock "0:00:14"]
[BlackClock "0:00:09"]

1. d4 {[%clk 0:03:00]}  Nf6 {[%clk 0:02:59]} 2. Nf3 {[%clk 0:03:00]}  g6 {[%clk 0:02:59]} 3. g3 {[%clk 0:03:00]}  Bg7 {[%clk 0:02:59]} 4. Bg2 {[%clk 0:03:00]}  O-O {[%clk 0:02:59]} 5. O-O {[%clk 0:03:01]}  d6 {[%clk 0:03:00]} 6. c4 {[%clk 0:03:01]}  Nc6 {[%clk 0:03:00]} 7. Nc3 {[%clk 0:03:02]}  a6 {[%clk 0:03:01]} 8. b3 {[%clk 0:03:00]}  Rb8 {[%clk 0:03:01]} 9. d5 {[%clk 0:03:01]}  Na5 {[%clk 0:03:01]} 10. Bg5 {[%clk 0:03:01]}  Bd7 {[%clk 0:03:01]} 11. Rc1 {[%clk 0:02:57]}  h6 {[%clk 0:02:56]} 12. Bf4 {[%clk 0:02:56]}  Re8 {[%clk 0:02:41]} 13. Qd2 {[%clk 0:02:52]}  Kh7 {[%clk 0:02:32]} 14. Rfd1 {[%clk 0:02:52]}  Rc8 {[%clk 0:02:14]} 15. Nd4 {[%clk 0:02:17]}  c5 {[%clk 0:02:09]} 16. dxc6 {[%clk 0:02:15]}  Nxc6 {[%clk 0:02:10]} 17. Nxc6 {[%clk 0:01:54]}  Bxc6 {[%clk 0:02:11]} 18. Nd5 {[%clk 0:01:54]}  Bxd5 {[%clk 0:02:09]} 19. cxd5 {[%clk 0:01:53]}  Qd7 {[%clk 0:02:03]} 20. Qd3 {[%clk 0:01:43]}  Rxc1 {[%clk 0:02:01]} 21. Rxc1 {[%clk 0:01:44]}  Rc8 {[%clk 0:02:00]} 22. Rc4 {[%clk 0:01:44]}  Rxc4 {[%clk 0:01:57]} 23. Qxc4 {[%clk 0:01:45]}  Ne8 {[%clk 0:01:48]} 24. e4 {[%clk 0:01:41]}  Qc7 {[%clk 0:01:42]} 25. Qxc7 {[%clk 0:01:38]}  Nxc7 {[%clk 0:01:43]} 26. Bf1 {[%clk 0:01:38]}  Bd4 {[%clk 0:01:42]} 27. Bc4 {[%clk 0:01:33]}  Kg7 {[%clk 0:01:33]} 28. Kf1 {[%clk 0:01:33]}  Ne8 {[%clk 0:01:21]} 29. Ke2 {[%clk 0:01:32]}  Nf6 {[%clk 0:01:18]} 30. f3 {[%clk 0:01:32]}  Nd7 {[%clk 0:01:17]} 31. b4 {[%clk 0:01:18]}  h5 {[%clk 0:00:56]} 32. Bd2 {[%clk 0:01:17]}  Bg1 {[%clk 0:00:54]} 33. h3 {[%clk 0:01:16]}  Bd4 {[%clk 0:00:51]} 34. a4 {[%clk 0:01:15]}  Ne5 {[%clk 0:00:48]} 35. Bb3 {[%clk 0:01:13]}  f5 {[%clk 0:00:30]} 36. f4 {[%clk 0:01:06]}  Nd7 {[%clk 0:00:28]} 37. Kf3 {[%clk 0:01:00]}  Nf6 {[%clk 0:00:22]} 38. exf5 {[%clk 0:00:42]}  gxf5 {[%clk 0:00:23]} 39. Bc4 {[%clk 0:00:36]}  Kg6 {[%clk 0:00:21]} 40. b5 {[%clk 0:00:34]}  axb5 {[%clk 0:00:22]} 41. axb5 {[%clk 0:00:32]}  b6 {[%clk 0:00:20]} 42. Be1 {[%clk 0:00:24]}  Ne4 {[%clk 0:00:18]} 43. g4 {[%clk 0:00:23]}  hxg4+ {[%clk 0:00:17]} 44. hxg4 {[%clk 0:00:24]}  Nc5 {[%clk 0:00:14]} 45. gxf5+ {[%clk 0:00:21]}  Kxf5 {[%clk 0:00:14]} 46. Bd2 {[%clk 0:00:21]}  Kf6 {[%clk 0:00:12]} 47. Kg4 {[%clk 0:00:20]}  Ne4 {[%clk 0:00:10]} 48. Be1 {[%clk 0:00:20]}  Nc5 {[%clk 0:00:10]} 49. Bh4+ {[%clk 0:00:18]}  Kf7 {[%clk 0:00:10]} 50. Kf3 {[%clk 0:00:17]}  Bf6 {[%clk 0:00:10]} 51. Be1 {[%clk 0:00:16]}  Bd4 {[%clk 0:00:10]} 52. Bg3 {[%clk 0:00:14]}  Kf6 {[%clk 0:00:10]} 53. Bf1 {[%clk 0:00:14]}  Kf7 {[%clk 0:00:09]} 54. Bh3 {[%clk 0:00:13]}  Kf6 {[%clk 0:00:09]} 55. Bh4+ {[%clk 0:00:14]}  Kf7 {[%clk 0:00:09]} 56. Bg4 {[%clk 0:00:12]}  Kg7 {[%clk 0:00:09]} 57. Bxe7 {[%clk 0:00:12]}  Nb3 {[%clk 0:00:08]} 58. Bxd6 {[%clk 0:00:12]}  Kf7 {[%clk 0:00:09]} 59. Be6+ {[%clk 0:00:11]}  Kf6 {[%clk 0:00:09]} 60. Ke4 {[%clk 0:00:12]}  Ba1 {[%clk 0:00:08]} 61. Be5+ {[%clk 0:00:12]}  Bxe5 {[%clk 0:00:07]} 62. fxe5+ {[%clk 0:00:13]}  Ke7 {[%clk 0:00:08]} 63. Bg8 {[%clk 0:00:13]}  Nc5+ {[%clk 0:00:08]} 64. Kf5 {[%clk 0:00:13]}  Nd3 {[%clk 0:00:08]} 65. d6+ {[%clk 0:00:13]}  Kd7 {[%clk 0:00:06]} 66. Bd5 {[%clk 0:00:13]}  Nb4 {[%clk 0:00:05]} 67. Bc6+ {[%clk 0:00:13]}  Nxc6 {[%clk 0:00:05]} 68. bxc6+ {[%clk 0:00:13]}  Kxc6 {[%clk 0:00:06]} 69. Ke6 {[%clk 0:00:14]}  b5 {[%clk 0:00:07]} 70. d7 {[%clk 0:00:14]}  b4 {[%clk 0:00:08]} 71. d8=Q {[%clk 0:00:14]}  b3 {[%clk 0:00:09]} 1-0


[Site "https://www.chess.com"]